Cogmind - Beta 14 @@@ ROGUE MODE // 2024.09.14 @ 20:09:44 Player: daxter767676 Result: Destroyed by 45-EKD(R) with Subdweller Laser Performance ------------- Evolutions (0) 0 Regions Visited (2) 400 Robots Destroyed (19) 95 Value Destroyed (377) 377 Prototype IDs (1) 20 Alien Tech Used (0) 0 Bonus (0) 0 TOTAL SCORE: 892 Bonus ------- None Cogmind --------- Core Integrity 0/250 Matter 227/300 Energy 3/100 System Corruption 0% Temperature Cool (6) Movement Core (150) Ox2 Location -10/Subcaves Parts ------- > --- POWER (1+3) ------ (None) > --- PROPULSION (2) --- (None) > --- UTILITY (2) ------ Subdweller Optics Power Bank > --- WEAPON (2) ------- Grenade Launcher > --- INVENTORY (5) ---- Improved Heat Sink Huge Storage Unit Seismic Detector Peak State ------------ > --- POWER ------------ Light Ion Engine > --- PROPULSION ------- Wheel Subdweller Monowheel > --- UTILITY ---------- Subdweller Optics Power Bank > --- WEAPON ----------- Beam Cannon Mining Laser > --- INVENTORY -------- Improved Heat Sink Huge Storage Unit Seismic Detector Grenade Launcher [Rating: 17] Favorites ----------- Power Light Ion Engine Engine Light Ion Engine Propulsion Wheel Leg Aluminum Leg Wheel Wheel Utility Seismic Detector Device Seismic Detector Storage Small Storage Unit Weapon Beam Cannon Energy Cannon Beam Cannon Ballistic Gun Light Assault Rifle Launcher Grenade Launcher Special Weapon Mining Laser Build | -11 -10 -10 ------- Run | Yrd Mat Sub Slots Evolved . | . . . Power . | . . . Propulsion . | . . . Utility . | . . . Weapon . | . . . Parts Attached 28 | 7 11 10 Power 1 | . . 1 Engine 1 | . . 1 Core . | . . . Reactor . | . . . Propulsion 7 | 4 2 1 Treads . | . . . Leg . | . . . Wheel 7 | 4 2 1 Hover . | . . . Flight . | . . . Utility 6 | 3 1 2 Device 6 | 3 1 2 Storage . | . . . Processor . | . . . Hackware . | . . . Protection . | . . . Artifact . | . . . Weapon 14 | . 8 6 Energy Gun . | . . . Energy Cannon 1 | . 1 . Ballistic Gun 4 | . 4 . Ballistic Cannon . | . . . Launcher 3 | . . 3 Special Weapon 6 | . 3 3 Impact Weapon . | . . . Slashing Weapon . | . . . Piercing Weapon . | . . . Special Melee Weapon . | . . . Unidentified Prototypes 1 | . . 1 Parts Lost 10 | . 1 9 Power 2 | . . 2 Propulsion 4 | . 1 3 Utility 1 | . . 1 Weapon 3 | . . 3 Highest Loss Streak 5 | . 1 5 To Critical Strikes . | . . . Average Slot Usage (%) 90 | . 99 64 Engine 12 | . 14 9 Wheel 25 | . 28 19 Device 25 | . 27 21 Energy Cannon 9 | . 9 10 Ballistic Gun 10 | . 13 2 Special Weapon 4 | . 5 1 Peak Build Rating 17 | 9 9 17 Average Rating 10 | 7 8 14 On Entrance 8 | 6 9 9 Naked Turns . | . . . Heaviest Build 12 | 12 10 12 Greatest Support 30 | 20 20 30 Greatest Overweight (x) 1 | 1 . . Average Overweight (x) . | . . . Largest Inventory Capacity 8 | 8 5 5 Average Capacity 5 | 6 5 5 Most Carried 8 | 8 5 5 Average Carried 5 | 5 4 4 Final Capacity 5 | 5 5 5 Final Carried 5 | 5 5 3 Class Distribution -------------------- 51% | Mutant 48% | Scavenger-Mutant Dominant Class ---------------- Scavenger-Mutant | -10/Materials Mutant | -10/Subcaves Resources | -11 -10 -10 ----------- Run | Yrd Mat Sub Matter Collected 566 | 280 184 102 Remotely . | . . . Salvage Created 549 | 162 242 145 Parts 41 | 13 18 10 Haulers Intercepted 1 | . 1 . Recyclers Shooed . | . . . Parts Field Recycled . | . . . Retrieved Matter . | . . . Parts Self-Destructed 7 | . . 7 Prevented . | . . . Kills | -11 -10 -10 ------- Run | Yrd Mat Sub Combat Hostiles Destroyed 13 | . 8 5 Guns 7 | . 6 1 Cannons 5 | . 2 3 AOE 1 | . . 1 Classes Destroyed 6 | 2 3 1 Tunneler 4 | 4 . . Hauler 1 | . 1 . Recycler 1 | 1 . . Swarmer 6 | . 6 . Grunt 2 | . 2 . Subdweller 5 | . . 5 Best Kill Streak 3 | 2 3 3 Combat Bots Only 3 | . 3 3 Max Kills in Single Turn 1 | 1 1 1 Gunslinging . | . . . Exploded 1 | . . 1 Melee . | . . . Uniques/NPCs Destroyed . | . . . Combat | -11 -10 -10 -------- Run | Yrd Mat Sub Hostile Shots Fired 56 | . 23 33 Missed 18 | . 7 11 Damage Taken 875 | . 179 696 Core 261 | . 55 206 Absorbed by Shields . | . . . Regen/Repaired (Parts) 8 | . 8 . Core Remaining (%) 100 | 100 . . Volleys Fired 64 | 15 23 26 Largest 2 | 2 2 2 Hottest 100 | 40 100 100 Shots Fired 108 | 30 40 38 Gun 69 | 30 29 10 Cannon 25 | . 5 20 Launcher 6 | . . 6 Special 8 | . 6 2 Kinetic 69 | 30 29 10 Thermal 33 | . 11 22 Explosive 6 | . . 6 Electromagnetic . | . . . Robot Hit Streak 16 | 5 4 16 Robot Miss Streak 3 | 3 2 2 Penetration Max . | . . . Secondary Targets 1 | . 1 . Max Gunslinging Chain 1 | . 1 . Shots Hit Robots 59 | 16 18 25 Core Hits 31 | 8 14 9 Critical Kills . | . . . Critical Parts Destroyed . | . . . Critical Strikes . | . . . Melee Attacks . | . . . Impact . | . . . Slashing . | . . . Piercing . | . . . Sneak Attacks . | . . . Combat Hostiles . | . . . Follow-up Attacks . | . . . Damage Inflicted 935 | 186 212 537 Guns 449 | 186 160 103 Cannons 329 | . 52 277 Explosions 157 | . . 157 Melee . | . . . Ramming . | . . . Kinetic 449 | 186 160 103 Thermal 329 | . 52 277 Explosive 157 | . . 157 Electromagnetic . | . . . Impact . | . . . Slashing . | . . . Piercing . | . . . Highest Corruption . | . . . Average Corruption . | . . . Corruption Purged . | . . . Corruption Blocked . | . . . Overload Shots . | . . . Overflow Damage . | . . . Projectiles . | . . . Explosions . | . . . Melee . | . . . Knockbacks . | . . . Impact . | . . . Kinetic . | . . . Secondary . | . . . Self-Inflicted Damage 30 | . . 30 Shots 1 | . . 1 Rammed . | . . . Targets Rammed . | . . . Kicked . | . . . Crushed . | . . . Highest Temperature 60 | . 60 . Average Temperature 18 | . 18 . Received Heat Transfer 174 | . 84 90 Siege Activations . | . . . Robots Corrupted . | . . . Combat Hostiles . | . . . Parts Fried . | . . . Impact Corruptions . | . . . Robots Melted . | . . . Combat Hostiles . | . . . Parts Melted 1 | . . 1 Heat Transferred 703 | . 111 592 Parts Sabotaged . | . . . Parts Stolen . | . . . Parts Stripped . | . . . Power Chain Reactions . | . . . Alert | -11 -10 -10 ------- Run | Yrd Mat Sub Peak Influence 137 | 25 137 . Initial 16 | . 16 . Average 59 | 13 64 . Maximum Alert Level . | . . . Low Security (%) 100 | 100 100 . Level 1 . | . . . Level 2 . | . . . Level 3 . | . . . Level 4 . | . . . Level 5 . | . . . High Security . | . . . Max Security . | . . . Squads Dispatched 1 | . 1 . Investigation 1 | . 1 . Extermination . | . . . Reinforcement . | . . . Assault . | . . . Garrison . | . . . Intercept . | . . . Searches Triggered . | . . . Construction Impeded . | . . . Haulers Reinforced . | . . . Active Scanning Responses . | . . . Cargo Convoy Interrupts . | . . . Stealth | -11 -10 -10 --------- Run | Yrd Mat Sub Distress Signals . | . . . Communications Jammed . | . . . Distress Signals . | . . . Times Spotted 23 | . 17 6 Peak Tracking Total 4 | . 4 3 Tactical Retreats 1 | . 1 . Traps | -11 -10 -10 ------- Run | Yrd Mat Sub Traps Triggered 4 | . 2 2 Indirectly . | . . . Trap Hack Attempts . | . . . Triggered . | . . . Disarmed . | . . . Reprogrammed . | . . . Reused . | . . . Traps Extracted . | . . . Installed . | . . . Triggered . | . . . Machines | -11 -10 -10 ---------- Run | Yrd Mat Sub Machines Disabled . | . . . Max in Single Turn . | . . . Machines Repaired . | . . . Machines Dismantled . | . . . Machines Sabotaged . | . . . Overloaded Fab Kills . | . . . Hacking | -11 -10 -10 --------- Run | Yrd Mat Sub Machines Accessed 8 | . 8 . Terminals 5 | . 5 . Fabricators . | . . . Repair Stations 1 | . 1 . Recycling Units 2 | . 2 . Scanalyzers . | . . . Garrison Access . | . . . Total Hacks 16 | . 16 . Successful 13 | . 13 . Failed 3 | . 3 . Catastrophic . | . . . Database Lockouts . | . . . Manual 13 | . 13 . Terminals 11 | . 11 . Fabricators . | . . . Repair Stations 2 | . 2 . Recycling Units 3 | . 3 . Scanalyzers . | . . . Garrison Access . | . . . Terminal Hacks . | . . . Fabricator Hacks . | . . . Repair Station Hacks 2 | . 2 . Scan Component 1 | . 1 . Repair 1 | . 1 . Recycling Unit Hacks 1 | . 1 . Report Inventory 1 | . 1 . Scanalyzer . | . . . Garrison Access Hacks . | . . . Unauthorized Hacks 10 | . 10 . Terminals 8 | . 8 . Track 3 | . 3 . Assimilate 1 | . 1 . Skim 4 | . 4 . Fabricators . | . . . Repair Stations . | . . . Recycling Units 2 | . 2 . Recyclers 1 | . 1 . Mask 1 | . 1 . Scanalyzers . | . . . Garrison Access . | . . . Data Cores Recovered . | . . . Used . | . . . Hacking Detections 6 | . 6 . Full Trace Events . | . . . Feedback Events . | . . . Feedback Blocked . | . . . Robot Schematics Acquired . | . . . Robots Built . | . . . Authchips . | . . . Time . | . . . Total Robot Build Rating . | . . . Part Schematics Acquired . | . . . Parts Built . | . . . Authchips . | . . . Time . | . . . Total Part Build Rating . | . . . Parts Repaired 1 | . 1 . Time 38 | . 38 . Parts Recycled . | . . . Recycled Matter . | . . . Retrieved Matter . | . . . Retrieved Components . | . . . Parts Scanalyzed . | . . . Part Schematics Acquired . | . . . Parts Damaged . | . . . Bothacking | -11 -10 -10 ------------ Run | Yrd Mat Sub Used RIF Installer . | . . . Robots Hacked . | . . . Non-combat . | . . . Combat . | . . . Robot Hacks Applied . | . . . Relay Couplers Released . | . . . Fabnet Peak Effective % . | . . . Robots Rewired . | . . . Allies Hacked . | . . . Hacks Repelled . | . . . Allies | -11 -10 -10 -------- Run | Yrd Mat Sub Total Allies . | . . . Largest Group . | . . . Highest-Rated Group . | . . . Highest-Rated Ally . | . . . Total Orders . | . . . Ally Attacks . | . . . Total Damage . | . . . Kills . | . . . Allies Corrupted . | . . . Allies Melted . | . . . Intel | -11 -10 -10 ------- Run | Yrd Mat Sub Robot Analysis Total . | . . . Derelict Logs Recovered . | . . . Drone Launches . | . . . Drone Recoveries . | . . . Exploration | -11 -10 -10 ------------- Run | Yrd Mat Sub Turns Passed 1849 | 125 1293 431 Spaces Moved 1144 | 75 715 354 Core . | . . . Treads . | . . . Legs 19 | 19 . . Wheels 1125 | 56 715 354 Hover . | . . . Flight . | . . . Fastest Speed 80 | 80 80 80 Average Speed 84 | 92 80 93 Slowest Speed 120 | 120 80 110 Overloaded Moves . | . . . Propulsion Burnouts . | . . . Robots Hopped . | . . . Cave-ins Triggered . | . . . Exploration Rate (%) 42 | 5 97 26 Regions Visited 2 Branch Regions 1 Pre-discovered Areas . | . . . Known Exits Taken . | . . . Unknown Exits Taken 2 | 1 1 . Scrap Searched . | . . . Spaces Dug 11 | . 6 5 Terrain Destroyed 29 | . 6 23 Melee . | . . . Projectile 6 | . 6 . AOE 23 | . . 23 Terrain Rammed . | . . . Walls Destroyed . | . . . Machines Disabled . | . . . Actions | -11 -10 -10 --------- Run | Yrd Mat Sub Total 1895 | 103 1382 410 Wait 647 | . 629 18 Move 1142 | 74 714 354 Hop . | . . . Pick Up 5 | 2 3 . Fast Attach 7 | 2 2 3 Attach 5 | . 1 4 Detach 3 | 1 . 2 Swap 16 | 5 8 3 Drop 6 | 4 2 . Fire 64 | 15 23 26 Melee . | . . . Ram . | . . . Kick . | . . . Crush . | . . . Escape Stasis . | . . . Rewire . | . . . Trap . | . . . Miscellaneous . | . . . Route ------- -11/Scrapyard -10/Materials (discovered 5 exits: [*Mat x3] / [*Min] / [*Sub]) -10/Subcaves History --------- Turn | Location | Event 18 | -11/Scrapyard | Discovered new exit (range 3) 126 | -11/Scrapyard | Entered Materials 423 | -10/Materials | Discovered new exit (range 5) 482 | -10/Materials | Repaired Imp. Terrain Scanner 613 | -10/Materials | Discovered new exit (range 15) 800 | -10/Materials | Discovered new exit (range 16) 826 | -10/Materials | Build established: Mutant 1302 | -10/Materials | Build established: Scavenger-Mutant 1325 | -10/Materials | Discovered new exit (range 5) 1413 | -10/Materials | Discovered new exit (range 8) 1419 | -10/Materials | Entered Subcaves 1424 | -10/Subcaves | Shifting Twisted Machinery released Sub. Laser 1449 | -10/Subcaves | A Subdweller sparked back to life 1506 | -10/Subcaves | Found Prototype Device 1506 | -10/Subcaves | Identified Power Bank 1507 | -10/Subcaves | Attached Power Bank, gained temporary slots: Power x3 1527 | -10/Subcaves | Lost 4 parts (1p1n1u1w) 1679 | -10/Subcaves | Build established: Mutant 1799 | -10/Subcaves | Core integrity fell below 50% 1831 | -10/Subcaves | Core integrity fell below 20% 1832 | -10/Subcaves | Ambushed by Subdweller buried in earth 1850 | -10/Subcaves | Destroyed by 45-EKD(R) with Subdweller Laser Last Messages --------------- 01496_ Assault Rifle destroyed. 01501_ 5J-X6E(R) destroyed. 01506_ Acquired Prototype Device. 01506_ Identified Power Bank. 01507_ Core temporarily expanded with Power slot. 01507_ Acquired 20 matter. 01516_ Subatomizers dissect the Sub. Monowheel. 01608_ Acquired 5 matter. 01769_ WE-OJ3(u) tweaks Twisted Machinery. 01806_ Disposable Heat Sink melted. 01806_ P4-AL9(R) destroyed. 01808_ Acquired 46 matter. 01830_ Beam Cannon destroyed. 01832_ Lgt. Ion Engine destroyed. 01832_ Wheel destroyed. 01833_ 45-EKD(R): "ARGHSUB!" 01837_ LJ-0HQ(R) destroyed. 01838_ Sub. Monowheel destroyed. 01846_ Mining Laser destroyed. Map ----- +----------------------------------------------------+ | ????????##### ### ### # ## #??????????????? | | ?????#???### ## #??????????????? | | ?????# ## ### #??????????????? | | ?????# ### #? #??????????????? | | "## ## ## #?? #??????????????? | | " & #??# #??????????????? | | ##### ##?? ##?????????????? | | ????# #??? #?????????????? | | " ??# #??# #?????????????? | | "# ## ## #### ???????????????? | | " ??# #### ?????????????????? | | "# ???### # # #??????????????????? | | ??????## # ##?????????????????? | | ???????##### #?????????????????? | | ????????????# # ! #?????????????????? | | ???????????#?# # % ##?????????????????? | | ?????????# ## # # ??????????????????? | | ???????????# #??????????????????? | | ???????????# # ??????????????????? | | ??????????????### #??????????????????? | | ????????????????##### ##?????????????????? | | ????????????????????## #####?????????????? | | ?????????????????????#; ;; #?????????????? | | ?????????????????????# ##????????????? | | ?????????????????????# #????????????? | | ??????????????????????# @ ##????????????? | | ??????????????????????# R #????????????? | | ?????????????????????# #????????????? | | ?????????????????????# ##????????????? | | ?????????????????????# #?????????????? | | ?????????????????????### #?????????????? | | ???????????????????????##### ##?????????????? | | ???????????????????????????? ##??????????????? | | ???????????????????????????? #???????????????? | | ???????????????????????????? #???????????????? | | ???????????????????????????? #???????????????? | | ???????????????????????????? #???????????????? | | ????????????????????????????"#???????????????? | | ????????????????????????????"#???????????????? | | ????????????????????????????"#???????????????? | | ?????????????????????????????????????????????? | | ?????????????????????????????????????????????? | | ?????????????????????????????????????????????? | | ?????????????????????????????????????????????? | | ?????????????????????????????????????????????? | | ?????????????????????????????????????????????? | | ?????????????????????????????????????????????? | | ?????????????????????????????????????????????? | | ?????????????????????????????????????????????? | | ?????????????????????????????????????????????? | +----------------------------------------------------+ Best States ------------- Heat Dissipation 25 Energy Generation 10 Energy Capacity 125 Matter Stores 300 Matter Capacity 300 Sight Range 21 Terrain Scan Range 16 Terrain Scan Density 10 Evasion (%) 45 Item Schematics ----------------- None Robot Schematics ------------------ None Fabricated ------------ Nothing Alien Tech Used ----------------- None Achievements -------------- None Challenges ------------ None Game ------ Seed BarrageMyomerReplicator Manual? 0 Play Time 00:18:58 Cumulative 130.6 hours Start 2024.09.14 @ 19:50:07 End 2024.09.14 @ 20:09:44 Sessions 1 Manual Loads 0 Difficulty Rogue Special Mode None Game No. 129 Rogue 127 Adventurer 2 Explorer 0 Win Type - Total 0 Types 0/0/0/0/0/0/0/0/0 Lore% 57 Gallery% 58 Achievement% 44 Wizard Run 0 Options --------- Layout 2 ASCII 0 Keyboard 1 Movement Vi Keybinds 0 Fullscreen 1 Font 24/Smallcaps Map View 50x44 Zoom Use 0% Tactical HUD 1 Map Filters NONE Filters NONE Steam SD RUN: 8e471fbb-046d-4676-8e43-31e254f90cbd